bitfinex/quotes_ETHUSD_20250827
["timestamp","ask_amount","ask_price","bid_price","bid_amount"]
[1756301470785,3.0,4594.8,4593.8,0.021]
[1756301471088,0.20177515,4594.7,4594.0,2.17674397]
[1756301471252,0.34073278,4594.6,4594.5,2.17651477]
[1756301471452,0.04,4595.8,4595.3,2.17611709]
[1756301471653,0.04,4595.8,4594.5,3.59771477]
[1756301471654,0.04,4595.8,4594.5,0.7612]
[1756301472002,0.04,4595.8,4595.7,2.48124708]
[1756301472296,0.04,4595.8,4595.7,3.40287564]
[1756301472506,0.04,4595.8,4595.7,3.42463511]
[1756301472648,2.0145859,4597.2,4597.1,2.17528441]
[1756301472649,0.3405859,4597.2,4597.1,2.17528441]
[1756301472853,0.002,4599.9,4598.7,2.17452758]
[1756301473303,0.002,4599.9,4598.7,3.29042758]
[1756301473803,1.676,4599.9,4598.7,2.17452758]
[1756301473962,1.068,4599.7,4598.7,2.63042758]
[1756301474395,1.676,4599.9,4598.7,2.63042758]
[1756301474930,2.7519,4599.6,4597.2,0.21752844]
[1756301475066,4.013,4598.8,4597.4,0.4559]
[1756301475598,1.694,4598.8,4598.5,2.17460232]
[1756301475813,1.694,4598.8,4597.4,0.4559]
[1756301476015,0.4329,4598.7,4596.0,0.4559]
[1756301476320,2.17529661,4597.1,4595.0,0.4559]
[1756301476477,3.0,4596.9,4594.1,1.674]
[1756301476664,0.66,4596.6,4594.2,0.40754634]
[1756301476864,0.66,4596.6,4593.8,0.021]
[1756301476865,3.0,4596.1,4593.8,0.021]
[1756301477078,0.4329,4596.5,4593.8,0.021]
[1756301477079,3.887,4596.0,4593.9,0.47766799]
[1756301477282,1.674,4595.9,4595.6,2.1759551]
[1756301477600,1.674,4596.5,4594.7,0.4559]
[1756301477798,3.889,4596.6,4594.8,0.26324146]
[1756301478004,3.4329,4596.5,4593.7,0.4559]
[1756301478172,0.66,4596.4,4593.9,2.17679966]
[1756301478362,7.3259,4596.3,4594.2,2.17664921]
[1756301478562,3.0,4596.1,4594.9,2.17631643]
[1756301478871,3.0,4595.9,4593.9,2.17679966]
[1756301479216,1.674,4595.8,4594.8,0.02]
[1756301479365,3.891,4596.3,4595.0,0.66]
[1756301479679,4.3239,4596.3,4594.8,0.02]
[1756301479878,3.891,4596.3,4595.8,2.1758608]
[1756301480074,3.891,4596.3,4595.9,2.17585087]
[1756301480292,7.0,4596.2,4595.1,0.66]
[1756301480506,7.0,4596.2,4595.5,2.17599682]
[1756301480683,7.0,4596.2,4595.9,2.17585194]
[1756301480878,3.896,4596.4,4596.3,2.17566303]
[1756301481281,0.34060041,4597.0,4596.9,2.17537905]
[1756301481480,1.674,4597.9,4596.9,0.4364]
[1756301481669,5.573,4598.6,4596.9,0.4364]
[1756301481887,0.02,4598.8,4598.7,2.17452758]
[1756301482185,0.654385,4599.3,4599.2,2.17429118]
[1756301482594,0.654385,4599.3,4599.2,2.61069118]
[1756301482798,0.34038404,4599.7,4599.4,2.17419663]
[1756301482998,0.34038404,4599.7,4599.6,5.83410209]
[1756301483199,0.34038404,4599.7,4599.6,7.25694611]
[1756301483598,0.34038404,4599.7,4599.6,2.28290209]
[1756301484020,0.34038404,4599.7,4599.6,2.17410209]
[1756301484326,0.34038404,4599.7,4598.2,0.1088]
[1756301484327,0.464,4599.7,4598.2,0.1088]
[1756301484512,2.138,4599.7,4598.1,3.0]
[1756301484826,1.674,4599.7,4598.2,0.4674]
[1756301485121,1.674,4599.7,4598.2,0.66]
[1756301485320,0.466,4599.9,4598.3,0.4364]
[1756301485321,0.002,4599.9,4598.3,0.4364]
[1756301485525,0.002,4599.9,4599.5,2.17412878]
[1756301485711,0.002,4599.9,4599.6,2.1740918]
[1756301486028,4.386,4599.7,4598.5,0.1088]
[1756301486225,4.386,4599.7,4595.8,2.1758859]
[1756301486226,1.673,4599.6,4597.2,0.1088]
[1756301486403,0.464,4599.5,4596.8,0.4364]
[1756301486724,0.464,4599.5,4597.2,2.17519328]
[1756301486923,2.17443513,4598.9,4597.5,2.1750934]
[1756301487125,4.673,4599.6,4596.7,1.673]
[1756301487126,0.464,4598.8,4596.7,1.673]
[1756301487328,2.17467097,4598.4,4596.7,1.673]
[1756301487496,1.673,4598.7,4596.9,2.17537905]
[1756301487696,1.673,4598.7,4597.0,0.02175331]
[1756301487897,1.673,4598.7,4597.2,0.66]
[1756301488129,0.464,4599.5,4597.4,3.66]
[1756301488130,1.673,4599.4,4597.4,3.66]
[1756301488299,1.673,4599.4,4597.8,0.66]
[1756301488498,1.673,4599.4,4598.1,3.0]
[1756301488700,1.673,4599.4,4597.7,3.66]
[1756301488701,0.02,4599.8,4599.6,0.66]
[1756301488926,1e-08,4599.9,4599.8,5.83400756]
[1756301489145,1e-08,4599.9,4599.8,7.24013072]
[1756301489431,0.01920001,4601.8,4601.7,2.83310993]
[1756301489600,0.01920001,4601.8,4601.7,5.83310993]
[1756301489795,0.02,4602.8,4602.7,2.17263779]
[1756301490000,0.02,4602.8,4598.9,2.17439213]
[1756301490247,0.464,4602.7,4599.6,0.66]
[1756301490393,2.137,4602.6,4599.7,0.4364]
[1756301490597,2.865,4602.5,4599.8,0.66]
[1756301490901,2.865,4602.5,4599.6,3.0]
[1756301490902,3.66,4602.3,4599.6,3.0]
[1756301491097,3.66,4602.3,4599.4,0.11337007]
[1756301491098,0.66,4601.9,4599.4,0.11337007]
[1756301491297,0.464,4601.8,4599.4,0.11337007]
[1756301491540,0.34024511,4602.1,4599.5,6.22890674]
[1756301491723,0.34024511,4602.1,4599.7,0.66]
[1756301491945,1.673,4602.6,4601.2,0.66]
[1756301492121,1.673,4602.6,4601.0,3.0]
[1756301492469,0.34017429,4604.6,4600.9,5.356]
[1756301492470,0.484,4603.8,4602.7,2.17263779]
[1756301492623,0.02,4603.8,4602.7,2.17263779]
[1756301492818,0.02,4603.8,4603.7,2.17216586]
[1756301493018,0.02,4603.8,4602.8,0.21726378]
[1756301493246,0.02,4603.8,4602.2,2.17285338]
[1756301493247,0.464,4603.7,4601.1,1.673]
[1756301493447,3.0,4603.5,4600.5,0.66]
[1756301493624,3.0,4603.3,4601.4,2.17321229]
[1756301493823,2.17258999,4602.9,4601.4,2.17323779]
[1756301494154,5.625,4602.8,4600.6,0.4364]
[1756301494354,5.625,4602.8,4600.7,0.40964]
[1756301494355,0.464,4602.7,4600.7,0.40964]
[1756301494534,0.464,4602.7,4601.6,2.17313827]
[1756301494735,3.95,4602.6,4601.6,2.17313827]
[1756301494930,3.95,4602.6,4601.7,2.17310433]
[1756301495154,3.95,4602.6,4600.7,0.40964]
[1756301495360,3.95,4602.6,4602.0,2.1729563]
[1756301495559,3.95,4602.6,4602.0,2.17296386]
[1756301495752,3.95,4602.6,4600.8,0.02]
[1756301496060,3.464,4602.5,4600.8,0.02]
[1756301496478,2.17287332,4602.3,4600.9,2.17348779]
[1756301496634,0.464,4602.2,4600.8,0.02]
[1756301496829,0.464,4602.2,4601.6,2.17312827]
[1756301497025,0.464,4602.2,4600.8,0.02]
[1756301497527,3.0,4602.1,4600.8,0.02]
[1756301497861,1.124,4602.0,4600.8,0.02]
[1756301498030,2.17330988,4601.3,4600.8,0.02]
[1756301498231,1.672,4601.9,4600.8,0.02]
[1756301498572,1.672,4601.9,4600.9,2.17348779]
[1756301498729,1.672,4601.9,4601.8,2.17306271]
[1756301498932,0.02,4601.8,4601.5,2.17318461]
[1756301499235,0.02,4601.8,4601.7,2.17310993]
[1756301499568,0.02,4601.8,4600.9,3.0]
[1756301499569,0.484,4601.8,4600.9,3.0]
[1756301499864,0.484,4601.8,4601.5,2.1731868]
[1756301500026,0.02,4601.8,4600.8,0.02]
[1756301500224,0.02,4601.8,4601.7,2.17310993]
[1756301500427,0.02,4601.8,4600.8,0.322]
[1756301500649,1.672,4601.7,4600.8,0.02]
[1756301501062,0.464,4601.6,4600.8,0.02]
[1756301501454,0.464,4601.6,4600.9,2.17348639]
[1756301501770,3.946,4601.5,4600.8,0.02]
[1756301502166,2.63726377,4601.4,4600.8,0.02]
[1756301502339,0.464,4601.4,4600.8,0.02]
[1756301503027,2.17347994,4601.0,4600.8,0.02]
[1756301503226,2.17338549,4601.2,4600.8,0.02]
[1756301503227,2.17348779,4600.9,4600.8,0.02]
[1756301503439,5.63748779,4600.9,4600.8,0.02]
[1756301503661,3.464,4600.9,4600.8,0.02]
[1756301503854,5.63748779,4600.9,4600.8,0.02]
[1756301504338,3.464,4600.9,4600.8,0.02]
[1756301504539,9.58048779,4600.9,4600.8,0.02]
[1756301504740,1.672,4601.7,4600.8,0.02]
[1756301505073,0.02,4601.8,4601.7,2.17310993]
[1756301505279,0.484,4601.8,4600.8,0.02]
[1756301505567,1.672,4601.7,4600.8,0.02]
[1756301505736,2.17339616,4601.1,4600.8,0.02]
[1756301505931,4.411,4601.6,4600.8,0.02]
[1756301506630,0.464,4601.6,4600.8,0.02]
[1756301506859,3.946,4601.5,4600.9,2.17348779]
[1756301507063,3.946,4601.5,4600.8,0.02]
[1756301507600,0.02,4601.8,4601.7,2.17310993]
[1756301507804,0.02,4601.8,4601.7,3.267739]
[1756301507972,0.002,4603.3,4602.7,2.17263779]
[1756301507973,1e-08,4602.8,4602.7,2.17263779]
[1756301508314,0.002,4603.3,4603.2,2.8324018]
[1756301508975,0.002,4603.3,4603.2,2.1724018]
[1756301510861,0.002,4603.3,4602.3,2.17278921]
[1756301511067,0.002,4603.3,4603.0,2.17245187]
[1756301511266,0.002,4603.3,4602.4,3.21727892]
[1756301511509,0.002,4603.3,4603.2,2.1724018]
[1756301512373,0.4441,4603.3,4602.9,2.17253438]
[1756301512694,0.002,4603.3,4603.0,2.17245239]
[1756301513104,0.002,4603.3,4603.1,2.17244755]
[1756301513297,0.002,4603.3,4603.2,2.1724018]
[1756301513900,0.002,4603.3,4602.9,2.17249756]
[1756301514103,0.0012,4603.3,4602.9,2.17249756]
[1756301514269,0.4421,4603.2,4601.7,0.43462907]
[1756301514470,0.0012,4603.3,4601.8,0.4391]
[1756301514683,0.0012,4603.3,4603.2,2.1724018]
[1756301514884,0.4421,4603.2,4602.8,0.02]
[1756301515123,3.0,4603.0,4601.8,0.02]
[1756301515295,2.17334862,4601.2,4599.9,2.17392956]
[1756301515474,5.87200712,4601.1,4599.9,2.17394107]
[1756301515674,0.20200712,4601.0,4598.8,3.001]
[1756301515991,0.20200712,4601.0,4600.0,2.17390669]
[1756301515992,0.20194852,4600.9,4600.0,2.17390669]
[1756301516177,3.01954343,4600.9,4599.3,2.17524338]
[1756301516506,3.01954343,4600.9,4599.4,2.17418647]
[1756301516708,0.84605564,4600.9,4599.9,2.17395543]
[1756301517004,2.81759491,4600.9,4599.9,2.17395975]
[1756301517205,0.64410712,4600.9,4599.3,0.001]
[1756301517417,2.81759491,4600.9,4599.3,0.001]
[1756301517613,2.81759491,4600.9,4599.6,2.174074]
[1756301517772,2.81759491,4600.9,4599.7,2.17404951]
[1756301517976,2.81759491,4600.9,4599.7,2.17405251]
[1756301518207,0.64410712,4600.9,4599.3,0.001]
[1756301518376,0.64410712,4600.9,4599.6,2.17408106]
[1756301518576,0.20200712,4600.9,4599.9,2.17394786]
[1756301518879,0.20200712,4600.9,4599.3,0.001]
[1756301519079,0.20200712,4600.9,4599.9,2.1739182]
[1756301519277,0.20200712,4601.0,4600.0,2.17390766]
[1756301519493,0.20200712,4600.9,4599.3,2.17523531]
[1756301519713,3.988,4601.0,4600.5,2.17367285]
[1756301519917,3.988,4601.0,4599.7,2.17404537]
[1756301520144,3.988,4601.0,4600.5,2.17367245]
[1756301520311,1.672,4601.8,4600.9,0.4391]
[1756301520642,3.99,4602.5,4601.8,0.02]
[1756301521021,1.672,4602.6,4601.8,0.02]
[1756301521205,0.4433,4603.3,4601.8,0.02]
[1756301521206,0.002,4602.8,4602.6,2.17264904]
[1756301521403,0.002,4602.8,4602.0,0.4391]
[1756301521603,3.3351,4602.7,4601.8,0.02]
[1756301521833,2.17280326,4602.4,4601.8,0.02]
[1756301522128,1.87423455,4602.3,4601.8,0.02]
[1756301522333,0.20223455,4602.2,4601.8,0.02]
[1756301522931,0.4421,4602.1,4601.8,0.02]
[1756301523299,0.64440695,4602.0,4601.8,0.02]
[1756301523621,2.17301549,4601.9,4601.8,0.02]
[1756301523830,2.37532026,4601.9,4601.8,0.02]
[1756301523997,9.81842026,4601.9,4601.8,0.02]
[1756301524198,5.81742026,4601.9,4601.8,0.02]
[1756301524422,4.20330477,4601.9,4601.8,0.02]
[1756301524626,4.20326022,4601.9,4601.8,0.02]
[1756301524806,4.20324369,4601.9,4601.8,0.02]
[1756301525027,4.0,4601.9,4601.8,0.02]
[1756301525539,0.20223527,4601.9,4601.8,0.02]
[1756301525744,4.0,4602.1,4601.8,0.02]
[1756301526457,0.0012,4603.3,4602.0,2.17296827]
[1756301526613,0.0012,4603.3,4602.7,2.17263779]
[1756301526807,0.0012,4603.3,4602.1,0.70030683]
[1756301527112,0.0012,4603.3,4602.7,2.17263779]
[1756301527852,0.022,4602.8,4602.7,6.29346416]
[1756301528056,0.022,4602.8,4602.7,7.22715684]
[1756301528521,0.022,4602.8,4602.7,7.11835684]
[1756301529544,1e-08,4602.8,4602.7,7.11835684]
[1756301529716,1e-08,4602.8,4602.7,11.12835684]
[1756301530054,1e-08,4602.8,4602.7,11.23715684]
[1756301530719,1e-08,4602.8,4602.7,3.01925684]
[1756301531053,1e-08,4602.8,4601.7,0.4391]
[1756301531212,1e-08,4602.8,4600.8,2.194488]
[1756301531213,2.1141,4602.7,4600.8,0.1298]
[1756301531413,1.848,4602.6,4600.9,2.17348779]
[1756301531662,1.672,4602.7,4601.0,0.66942878]
[1756301531864,1.672,4602.7,4601.9,2.17297172]
[1756301532012,1.672,4602.7,4602.0,2.17295795]
[1756301532217,1.672,4602.7,4602.3,2.17278148]
[1756301532718,1.672,4602.7,4601.0,0.77822878]
[1756301532913,1.672,4602.7,4601.1,2.62927315]
[1756301533213,0.4421,4602.6,4601.1,0.29727315]
[1756301533441,2.17283586,4602.3,4600.8,2.19452812]
[1756301533629,4.013,4602.4,4600.8,0.021]
[1756301533813,4.013,4602.4,4601.4,2.17323103]
[1756301534015,4.4561,4602.6,4600.8,0.021]
[1756301534216,4.4561,4602.6,4601.9,2.17300407]
[1756301534422,4.4561,4602.6,4600.8,2.19452995]
[1756301534423,2.17305438,4601.9,4600.8,2.19452995]
[1756301534742,1.672,4601.8,4600.8,0.021]
[1756301534951,1.816,4602.6,4600.8,0.021]
[1756301535246,1.816,4602.6,4602.3,2.17282592]
[1756301535432,1.672,4602.7,4602.3,2.17282609]
[1756301535638,2.1141,4602.7,4602.0,2.17296827]
[1756301535946,1.672,4602.7,4601.2,0.66]
[1756301536156,1e-08,4602.8,4602.7,2.17263779]
[1756301537322,1e-08,4602.8,4601.7,2.17307928]
[1756301537544,1e-08,4602.8,4602.7,2.17263779]
[1756301537739,1e-08,4602.8,4601.5,3.0]
[1756301538065,1e-08,4602.8,4602.7,2.17263779]
[1756301538229,1e-08,4602.8,4602.6,2.17267626]
[1756301538433,4.01120001,4603.1,4601.8,0.001]
[1756301538618,0.4421,4603.0,4601.8,2.17404755]
[1756301538943,0.002,4602.8,4601.8,0.001]
[1756301539139,0.002,4602.8,4602.0,2.17292709]
[1756301539325,2.17459878,4602.8,4601.8,0.001]
[1756301539527,0.4421,4602.7,4601.8,0.001]
[1756301539745,1.672,4602.6,4601.8,0.001]
[1756301539941,4.009,4602.5,4601.9,2.17301549]
[1756301540116,4.009,4602.5,4601.8,0.001]
[1756301540319,0.4281,4602.4,4601.8,0.001]
[1756301540556,2.17282663,4602.3,4601.3,0.001]
[1756301540848,5.17292105,4602.1,4599.6,2.17409058]
[1756301541018,2.17322692,4601.5,4600.2,2.17379969]
[1756301541217,2.17332398,4601.3,4600.0,2.17391119]
[1756301541464,1.672,4601.2,4600.0,2.17391119]
[1756301541619,2.17339331,4601.1,4599.7,2.17403117]
[1756301541814,0.4281,4601.1,4599.3,0.001]
[1756301542115,0.4281,4601.0,4599.3,0.001]
[1756301542351,0.4281,4601.0,4599.9,2.17395594]
[1756301542519,0.4281,4603.2,4600.1,0.66]
[1756301542720,0.0012,4603.3,4602.7,2.17263779]
[1756301542958,0.0012,4603.3,4602.7,2.83290157]
[1756301543452,0.0012,4603.3,4602.7,3.49290157]
[1756301543656,0.0012,4603.3,4602.7,2.38990157]
[1756301544346,0.0012,4603.3,4602.7,2.17263779]
[1756301544921,0.4301,4602.8,4602.2,2.17282726]
[1756301545116,2.1021,4602.8,4601.3,1.7808]
[1756301545367,2.1021,4602.8,4600.9,2.17348779]
[1756301545579,3.0,4602.5,4600.8,0.021]
[1756301545867,0.4281,4602.7,4600.8,0.021]
[1756301545868,2.17348779,4600.9,4600.8,0.021]
[1756301546158,11.32258779,4600.9,4600.8,0.021]
[1756301546453,9.1501,4600.9,4600.8,0.021]
[1756301546622,11.32358779,4600.9,4600.8,0.021]
[1756301547049,2.1001,4600.9,4600.8,0.021]
[1756301547253,11.32358779,4600.9,4600.8,0.021]
[1756301547544,2.17372402,4600.4,4597.8,0.02]
[1756301547732,2.1739603,4599.9,4597.8,0.02]
[1756301548053,1.672,4599.8,4597.8,0.02]
[1756301548430,4.051,4599.7,4598.2,0.443]
[1756301548633,4.051,4599.7,4599.0,2.17438367]
[1756301548929,4.051,4599.7,4599.2,2.17428428]
[1756301549116,2.60220414,4599.6,4598.1,2.17478918]
[1756301549321,0.4281,4599.6,4597.8,0.02]
[1756301549664,2.17422319,4599.4,4597.8,0.02]
[1756301549964,35.225,4599.5,4597.8,0.02]
[1756301549965,0.4281,4599.3,4597.8,0.02]
[1756301550260,2.17438573,4599.0,4597.8,0.02]
[1756301550423,6.1681,4598.9,4597.8,0.02]
[1756301550928,2.60258029,4598.8,4597.8,0.02]
[1756301551133,2.17452758,4598.7,4597.8,0.02]
[1756301551330,0.4281,4598.8,4597.8,0.02]
[1756301551993,4.063,4598.7,4597.8,0.02]
[1756301552273,4.063,4598.6,4597.8,0.02]
[1756301552574,4.063,4598.6,4598.3,2.17469618]
[1756301552786,1.672,4598.9,4598.3,2.17469618]
[1756301552787,4.064,4598.8,4598.3,0.21746962]
[1756301552937,0.4281,4600.1,4598.1,0.443]
[1756301553276,1.672,4599.8,4599.4,2.17416379]
[1756301553488,1.672,4599.8,4598.2,0.66]
[1756301553489,1.672,4599.8,4599.7,2.17405482]
[1756301554143,1.692,4599.8,4599.7,2.17405482]
[1756301554485,1.692,4599.8,4598.0,1.672]
[1756301554645,2.1201,4599.8,4597.9,0.66]
[1756301554967,2.17407462,4599.7,4598.2,2.17474553]
[1756301555266,2.1201,4599.8,4598.7,2.1745121]
[1756301555447,2.1201,4599.8,4598.0,0.1123]
[1756301555647,2.1201,4599.8,4598.7,2.17450621]
[1756301555861,4.29411652,4599.8,4598.7,2.17450621]
[1756301556240,2.1201,4599.8,4598.8,2.17447351]
[1756301556439,0.002,4598.8,4598.2,0.66]
[1756301556674,0.002,4598.8,4598.7,2.17452758]
[1756301556967,0.002,4598.8,4598.7,2.60944057]
[1756301557352,0.002,4598.8,4598.7,3.05244057]
[1756301557557,0.002,4599.3,4599.2,2.83429118]
[1756301557975,0.002,4599.3,4599.2,6.38609118]
[1756301558144,0.002,4599.3,4599.2,2.17429118]
[1756301558991,0.002,4599.3,4599.2,3.71215681]
[1756301559195,0.002,4599.3,4599.2,2.71795681]
[1756301559358,0.002,4599.3,4599.2,2.17429118]
[1756301560696,0.002,4599.3,4598.6,2.17457487]
[1756301560697,7.4301,4599.3,4597.4,0.001]
[1756301560849,7.4301,4599.3,4597.6,2.17502603]
[1756301561048,4.052,4599.2,4598.5,2.17460869]
[1756301561373,11.054,4599.3,4598.8,2.17447373]
[1756301561570,7.002,4599.3,4599.1,2.17429739]
[1756301561770,7.002,4599.3,4599.1,2.17429574]
[1756301562084,0.4281,4599.2,4597.9,0.2196026]
[1756301562378,7.0,4599.2,4597.8,0.021]
[1756301562561,4.051,4599.1,4597.9,0.443]
[1756301562756,7.002,4599.3,4599.2,2.17429118]
[1756301562957,0.0012,4599.3,4599.2,2.83429118]
[1756301563157,0.0012,4599.3,4599.2,3.88695653]
[1756301563158,1e-08,4599.3,4599.2,3.88695653]
[1756301563389,1e-08,4599.3,4599.2,6.88695653]
[1756301563588,1e-08,4599.8,4599.7,5.83405482]
[1756301563776,1e-08,4599.8,4599.7,6.63487288]
[1756301563979,1e-08,4599.8,4599.7,7.18667288]
[1756301564696,1e-08,4599.8,4599.7,4.18667288]
[1756301565276,1e-08,4599.8,4599.7,11.24167288]
[1756301565820,1e-08,4599.8,4599.7,6.74367288]
[1756301565986,1e-08,4599.8,4599.7,7.18667288]
[1756301567119,1e-08,4599.8,4599.7,10.68787288]
[1756301567891,1e-08,4599.8,4599.7,5.83405482]
[1756301568094,0.42810001,4599.8,4598.8,0.02]
[1756301569007,1.672,4599.7,4599.0,2.1743818]
[1756301569325,1.672,4599.7,4599.2,2.1742745]
[1756301569521,7.0,4599.6,4598.8,0.02]
[1756301569720,7.0,4599.6,4599.1,2.17433718]
[1756301569876,7.0,4599.6,4598.8,0.02]
[1756301570236,7.0,4599.6,4598.8,0.30545288]
[1756301570375,7.0,4599.6,4599.2,2.17428398]
[1756301570771,0.4492,4599.5,4598.8,0.02]
[1756301571196,7.0,4599.6,4599.5,2.17414936]
[1756301571600,7.0,4599.6,4598.8,0.02]
[1756301571911,7.0,4599.6,4599.4,2.17415399]
[1756301572131,7.0,4599.6,4599.5,2.17414936]
[1756301572612,7.0,4599.6,4599.5,2.60898818]
[1756301572797,7.0,4599.6,4598.8,0.02]
[1756301573005,7.0,4599.6,4599.5,2.17414936]
[1756301573731,1e-08,4599.8,4599.7,2.83405482]
[1756301573907,1e-08,4599.8,4599.7,2.17405482]
[1756301574288,1e-08,4599.8,4599.7,2.83405482]
[1756301574632,1e-08,4599.8,4599.1,0.001]
[1756301574783,1e-08,4599.8,4599.2,2.17429118]
[1756301575199,0.44920001,4599.8,4599.1,0.001]
[1756301575694,4.048,4599.7,4599.2,2.17424489]
[1756301575906,0.4492,4599.6,4599.1,0.001]
[1756301576109,1e-08,4599.8,4599.1,0.001]
[1756301576307,1e-08,4599.8,4599.6,2.17410097]
[1756301576814,1e-08,4599.8,4599.5,2.17414443]
[1756301576999,1e-08,4599.8,4599.1,0.001]
[1756301577200,1e-08,4599.8,4599.7,2.17405482]
[1756301577621,1e-08,4599.8,4599.7,3.69997347]
[1756301577783,1e-08,4599.8,4599.7,6.83051401]
[1756301577984,1e-08,4599.8,4599.7,6.96897014]
[1756301578221,0.002,4600.3,4600.2,2.83381852]
[1756301578222,1e-08,4600.3,4600.2,2.83381852]
[1756301578395,1e-08,4600.3,4600.2,12.07332748]
[1756301578597,1e-08,4600.8,4600.7,2.83358228]
[1756301578803,1e-08,4600.8,4600.7,5.83358228]
[1756301579020,1e-08,4600.8,4600.7,6.37348228]
[1756301579212,1e-08,4600.8,4600.7,7.22819584]
[1756301579912,1e-08,4600.8,4600.7,11.27119584]
[1756301580229,1e-08,4603.3,4603.2,2.8324018]
[1756301580393,1e-08,4603.3,4603.2,9.12964198]
[1756301580599,1e-08,4603.3,4603.2,9.66954198]
[1756301581127,0.002,4605.9,4605.7,2.17122261]
[1756301581304,0.002,4605.9,4605.1,0.66]
[1756301581502,0.002,4605.9,4605.7,2.17122261]
[1756301581995,0.4892,4605.8,4604.8,0.66]
[1756301582196,0.04,4605.8,4605.7,2.17122261]
[1756301582605,0.04,4605.8,4605.6,2.17126944]
[1756301582926,0.4892,4605.8,4605.2,2.17144196]
[1756301583115,0.4892,4605.8,4605.7,2.17122261]
[1756301583428,0.04,4605.8,4605.7,2.17122261]
[1756301583634,0.04,4605.8,4605.4,0.66]
[1756301583836,0.04,4605.8,4605.7,2.17122261]
[1756301584127,0.04,4605.8,4605.2,0.1088]
[1756301584128,0.4892,4605.8,4605.1,4.038]
[1756301584428,0.04,4605.8,4605.7,2.17122261]
[1756301584929,0.4892,4605.8,4605.5,2.17131182]
[1756301585131,0.04,4605.8,4605.7,2.17122261]
[1756301585945,0.04,4605.8,4605.7,8.36168716]
[1756301586108,0.04,4605.8,4605.7,8.87987494]
[1756301586440,0.04,4605.8,4605.7,12.48377494]
[1756301586808,0.04,4605.8,4605.7,8.44877494]
[1756301587182,0.04,4605.8,4605.1,3.66]
[1756301587326,0.0392,4605.8,4605.3,2.17139369]
[1756301587507,0.0392,4605.8,4605.4,2.17136405]
[1756301587708,0.0392,4605.8,4605.7,2.17122261]
[1756301587908,0.0392,4605.8,4605.7,6.86322261]
[1756301588306,0.0392,4605.8,4605.7,2.17122261]
[1756301588510,0.0392,4605.8,4605.7,2.83122261]
[1756301588738,0.0392,4605.8,4605.7,2.17122261]
[1756301589146,0.0392,4605.8,4605.4,2.17133625]
[1756301589147,0.4884,4605.8,4605.4,2.17133625]
[1756301589463,0.0392,4605.8,4605.7,2.17122261]
[1756301589636,0.0392,4605.8,4605.7,2.83122261]
[1756301590008,0.0392,4605.8,4605.7,2.85293483]
[1756301590223,0.0392,4605.8,4605.7,5.96173483]
[1756301590425,0.0392,4605.8,4605.7,7.4567257]
[1756301590771,0.02,4606.8,4606.3,2.17093979]
[1756301590916,0.02,4606.8,4605.9,6.20511473]
[1756301591116,0.4692,4606.8,4606.1,2.1709897]
[1756301591432,0.4492,4606.3,4605.7,2.17121765]
[1756301591849,0.4492,4606.3,4605.8,2.17116694]
[1756301592033,0.4492,4606.2,4605.3,4.033]
[1756301592555,0.4492,4606.2,4605.4,0.66]
[1756301592755,0.4692,4606.8,4605.4,0.66]
[1756301592960,0.002,4605.8,4605.7,2.17122261]
[1756301594357,0.002,4605.8,4604.8,0.02]
[1756301594524,3.4512,4605.8,4604.8,0.02]
[1756301595043,0.4512,4605.8,4604.8,0.02]
[1756301595523,0.002,4605.8,4604.8,0.02]
[1756301595723,0.4512,4605.8,4605.1,2.17146437]
[1756301595965,0.4512,4605.8,4604.8,0.02]
[1756301596127,0.4512,4605.8,4605.3,2.17136813]
[1756301596322,0.4492,4605.7,4605.1,2.17146888]
[1756301596522,0.4492,4605.7,4605.2,2.17144107]
[1756301596711,0.4492,4605.6,4604.8,0.02]
[1756301597155,0.4492,4605.6,4605.0,2.17153923]
[1756301597360,0.4492,4605.6,4604.8,0.02]
[1756301597655,3.0,4605.4,4604.8,0.02]
[1756301597863,0.4492,4605.5,4603.8,0.001]
[1756301598023,0.002,4605.8,4602.8,0.021]
[1756301598024,0.66,4604.8,4602.8,0.021]
[1756301598220,3.0,4604.6,4602.8,0.021]
[1756301598436,2.1722677,4603.5,4602.8,0.021]
[1756301598772,1.67,4603.6,4602.8,0.021]
[1756301599072,0.4492,4603.4,4602.8,0.021]
[1756301599248,2.1202,4603.4,4602.8,0.021]
[1756301599422,4.29250742,4603.4,4602.8,0.021]
[1756301599825,7.29250742,4603.4,4602.8,0.021]
[1756301600764,7.95250742,4603.4,4602.8,0.021]
[1756301601163,2.83254339,4602.9,4602.8,0.021]
[1756301601411,2.17301549,4601.9,4601.8,0.02]
[1756301601618,7.86501549,4601.9,4601.8,0.02]
[1756301601926,8.99011549,4601.9,4601.8,0.02]
[1756301602208,2.17348779,4600.9,4600.8,0.02]
[1756301602411,11.52548779,4600.9,4600.8,0.02]
[1756301602596,11.33058779,4600.9,4600.8,0.02]
[1756301603160,11.99058779,4600.9,4600.8,0.02]
[1756301604368,11.98758779,4600.9,4600.8,0.02]
[1756301604575,5.1371,4600.9,4600.8,0.02]
[1756301604792,6.1521,4600.9,4600.8,0.02]
[1756301604986,1.671,4600.9,4600.8,0.02]
[1756301605362,1.671,4600.9,4600.8,2.19353503]
[1756301605563,1.671,4600.9,4600.8,2.63024979]